Cogmind - Beta 13 @@@ ROGUE MODE // 2024.04.17 @ 22:51:18 Player: Exceptionally Mediocre Result: Destroyed by Y-54 Guardian with Flak Gun Performance ------------- Evolutions (3) 1500 Regions Visited (6) 1200 Robots Destroyed (105) 525 Value Destroyed (2791) 2791 Prototype IDs (30) 600 Alien Tech Used (0) 0 Bonus (519) 519 TOTAL SCORE: 7135 Bonus ------- High Alert Combat Kills 132 Follower Combat Kills 134 Aligned with FarCom 300 Friendly Fire -47 Cogmind --------- Core Integrity 0/700 Matter 26/300 Energy 100/100 System Corruption 14% Temperature Cool (18) Movement Flying (32) Location -7/Factory Parts ------- > --- POWER (2) -------- (None) > --- PROPULSION (4) --- Cooled VTOL Module > --- UTILITY (5) ------ Coolant Injector Improved Salvage Targeting Computer > --- WEAPON (2) ------- Heavy Mace > --- INVENTORY (5) ---- Improved VTOL Module Mini Assault Cannon Mini Grenade Launcher Rocket Array Peak State ------------ > --- POWER ------------ Nuclear Core Cooled Deuterium Engine > --- PROPULSION ------- Gravmag System Improved VTOL Module Improved VTOL Module Improved VTOL Module > --- UTILITY ---------- Thermal Generator Thermal Generator Improved Salvage Targeting Computer Core Shielding > --- WEAPON ----------- Firepult > --- INVENTORY -------- Cooled Deuterium Engine Improved Medium Armor Plating Mini Grenade Launcher [Rating: 56] Favorites ----------- Power Light Ion Engine Engine Light Ion Engine Power Core Light Nuclear Core Propulsion Carbon-fiber Leg Treads Light Treads Leg Carbon-fiber Leg Wheel Wheel Hover Unit Gravmag System Flight Unit Improved VTOL Module Utility Huge Storage Unit Device Improved Heat Sink Storage Huge Storage Unit Processor Improved Salvage Targeting Computer Hackware Hacking Suite Protection Core Shielding Weapon Medium Laser Energy Gun Medium Laser Energy Cannon Firepult Ballistic Gun Gauss Rifle Launcher Rocket Launcher Impact Weapon Heavy Mace Slashing Weapon Mining Claw Build | -11 -10 -10 -10 -9 -8 -7 ------- Run | Yrd Mat Min Exi Min Mat Fac Slots Evolved 6 | . . . . . 4 2 Power 1 | . . . . . . 1 Propulsion 2 | . . . . . 1 1 Utility 3 | . . . . . 3 . Weapon . | . . . . . . . Parts Attached 110 | 8 10 5 . 8 42 37 Power 16 | 1 1 1 . 2 3 8 Engine 9 | 1 1 1 . 1 . 5 Core 7 | . . . . 1 3 3 Reactor . | . . . . . . . Propulsion 25 | 2 . 1 . 3 10 9 Treads 2 | 2 . . . . . . Leg 12 | . . . . 3 9 . Wheel 1 | . . 1 . . . . Hover 1 | . . . . . . 1 Flight 9 | . . . . . 1 8 Utility 37 | 2 3 1 . 1 18 12 Device 12 | 1 . . . . 7 4 Storage 6 | 1 3 1 . . . 1 Processor 1 | . . . . . . 1 Hackware 1 | . . . . . . 1 Protection 17 | . . . . 1 11 5 Artifact . | . . . . . . . Weapon 32 | 3 6 2 . 2 11 8 Energy Gun 12 | 2 3 . . 1 6 . Energy Cannon 3 | . . . . . . 3 Ballistic Gun 4 | 1 . . . . 3 . Ballistic Cannon . | . . . . . . . Launcher 10 | . 3 1 . 1 2 3 Special Weapon . | . . . . . . . Impact Weapon 1 | . . . . . . 1 Slashing Weapon 2 | . . 1 . . . 1 Piercing Weapon . | . . . . . . . Special Melee Weapon . | . . . . . . . Unidentified Prototypes 7 | . . . . . 4 3 Parts Lost 35 | . . 4 . 2 5 24 Power 8 | . . 1 . 2 . 5 Propulsion 9 | . . 1 . . 1 7 Utility 13 | . . . . . 4 9 Weapon 5 | . . 2 . . . 3 Highest Loss Streak 9 | . . 1 . 1 2 9 To Critical Strikes 1 | . . . . . . 1 Average Slot Usage (%) 97 | . 100 97 100 99 99 75 Engine 6 | . 14 11 14 8 . 7 Core 5 | . . . . 5 9 4 Treads 6 | . 28 18 14 . . . Leg 16 | . . . . 26 26 . Wheel 2 | . . 9 14 . . . Flight 2 | . . . . . . 25 Device 8 | . 14 14 14 . 8 10 Storage 11 | . 14 14 14 14 9 . Protection 13 | . . . . 14 26 10 Energy Gun 11 | . 13 14 14 16 8 . Ballistic Gun 4 | . 14 1 . . 6 . Launcher 4 | . . 7 . 11 2 2 Slashing Weapon 1 | . . 5 14 . . 1 Naked Turns . | . . . . . . . Heaviest Build 112 | 12 48 89 88 95 112 106 Greatest Support 43 | 40 40 40 10 28 43 26 Greatest Overweight (x) 20 | 3 1 8 8 9 20 5 Average Overweight (x) 2 | . . 5 8 3 2 1 Largest Inventory Capacity 25 | 8 20 25 25 25 25 25 Average Capacity 22 | 7 17 23 25 25 25 7 Most Carried 25 | 3 10 22 24 25 25 25 Average Carried 19 | 1 7 14 22 24 24 4 Final Capacity 25 | 8 20 25 25 25 25 5 Final Carried 25 | 3 10 22 24 25 25 4 Class Distribution -------------------- 51% | Scavenger-Mutant 47% | Mutant Dominant Class ---------------- Mutant | -10/Materials Mutant | -10/Mines Mutant | -10/Exiles Scavenger-Mutant | -9/Mines Scavenger-Mutant | -8/Materials Mutant | -7/Factory Resources | -11 -10 -10 -10 -9 -8 -7 ----------- Run | Yrd Mat Min Exi Min Mat Fac Matter Collected 2169 | 155 202 349 . 213 1062 188 Remotely . | . . . . . . . Salvage Created 3132 | 24 399 231 . 19 1747 712 Parts 164 | 3 23 14 . 1 85 38 Haulers Intercepted 8 | . 1 . . . 6 1 Recyclers Shooed 3 | 1 1 . . . . 1 Parts Field Recycled . | . . . . . . . Retrieved Matter . | . . . . . . . Parts Self-Destructed . | . . . . . . . Prevented . | . . . . . . . Kills | -11 -10 -10 -10 -9 -8 -7 ------- Run | Yrd Mat Min Exi Min Mat Fac Combat Hostiles Destroyed 60 | . 10 6 . 3 27 14 Melee 1 | . . . . . . 1 Guns 20 | . 3 1 . 2 14 . AOE 38 | . 7 5 . 1 13 12 Classes Destroyed 15 | 1 6 4 . 1 2 1 Worker 12 | . 2 . . . 7 3 Builder 6 | . 1 1 . . . 4 Tunneler 1 | 1 . . . . . . Hauler 8 | . 1 . . . 6 1 Recycler 7 | . . 1 . . 4 2 Operator 4 | . 1 . . . 1 2 Watcher 6 | . 1 . . . 3 2 Swarmer 10 | . . 2 . 2 3 3 Grunt 38 | . 10 2 . . 16 10 Brawler 1 | . . . . . 1 . Sentry 7 | . . 2 . . 5 . Demolisher 1 | . . . . 1 . . Specialist 2 | . . . . . 2 . Hunter 1 | . . . . . . 1 Zionite 1 | . . 1 . . . . Best Kill Streak 10 | 1 7 2 . 2 10 10 Combat Bots Only 7 | . 4 2 . 2 7 4 Max Kills in Single Turn 4 | 1 3 2 . 1 4 4 Gunslinging . | . . . . . . . Exploded 4 | . 3 1 . 1 4 4 Melee 1 | . . . . . . 1 Uniques/NPCs Destroyed . | . . . . . . . Combat | -11 -10 -10 -10 -9 -8 -7 -------- Run | Yrd Mat Min Exi Min Mat Fac Hostile Shots Fired 507 | . 53 45 . 16 108 285 Missed 187 | . 19 18 . 3 38 109 Damage Taken 5316 | . 436 348 . 161 1476 2895 Core 990 | . 98 37 . 14 141 700 Absorbed by Shields . | . . . . . . . Redirected to Shielding 249 | . . . . . 160 89 Core Remaining (%) 71 | 100 . . . 40 74 . Volleys Fired 180 | 4 33 14 . 16 102 11 Largest 2 | 2 2 2 . 2 2 1 Hottest 250 | 70 70 70 . 115 121 250 Shots Fired 258 | 8 51 16 . 19 153 11 Gun 197 | 8 40 5 . 15 129 . Cannon 3 | . . . . . . 3 Launcher 58 | . 11 11 . 4 24 8 Special . | . . . . . . . Kinetic 85 | 4 24 1 . . 56 . Thermal 115 | 4 16 4 . 15 73 3 Explosive 58 | . 11 11 . 4 24 8 Electromagnetic . | . . . . . . . Robot Hit Streak 14 | 4 7 8 . 9 14 8 Robot Miss Streak 7 | 1 4 2 . 3 7 2 Penetration Max 1 | . . . . . 1 . Secondary Targets . | . . . . . . . Shots Hit Robots 149 | 5 25 10 . 11 83 15 Core Hits 177 | 1 26 17 . 4 78 51 Critical Kills . | . . . . . . . Critical Parts Destroyed . | . . . . . . . Critical Strikes 13 | 1 3 . . 3 5 1 Burn 12 | 1 3 . . 3 5 . Sever 1 | . . . . . . 1 Melee Attacks 14 | . . . . . . 14 Impact 7 | . . . . . . 7 Slashing 7 | . . . . . . 7 Piercing . | . . . . . . . Sneak Attacks 2 | . . . . . . 2 Combat Hostiles . | . . . . . . . Follow-up Attacks . | . . . . . . . Damage Inflicted 7826 | 61 1056 609 . 175 3585 2340 Guns 1902 | 61 188 36 . 135 1482 . Cannons 148 | . . . . . . 148 Explosions 5336 | . 868 573 . 40 2103 1752 Melee 439 | . . . . . . 439 Ramming 1 | . . . . . . 1 Kinetic 833 | 24 89 . . . 720 . Thermal 1659 | 37 99 36 . 135 762 590 Explosive 4894 | . 868 573 . 40 2103 1310 Electromagnetic . | . . . . . . . Impact 91 | . . . . . . 91 Slashing 348 | . . . . . . 348 Piercing . | . . . . . . . Highest Corruption 14 | . 1 1 1 1 3 14 Average Corruption 2 | . 1 1 1 1 3 11 Corruption Purged . | . . . . . . . Corruption Blocked . | . . . . . . . Effects 92 | . 1 8 5 13 42 23 Message Errors 26 | . 1 3 2 3 10 7 Matter Fused 24 | . . 2 . 2 15 5 Heat Flow Errors 17 | . . . 1 4 7 5 Energy Discharges 4 | . . . 1 . 2 1 Parts Fused 4 | . . . 1 1 1 1 Data Loss (minor) 6 | . . 1 . 1 4 . Data Loss (major) 5 | . . 1 . 1 1 2 Misfires 2 | . . 1 . . 1 . Alerts 2 | . . . . 1 1 . Misdirections 2 | . . . . . . 2 Overload Shots . | . . . . . . . Overflow Damage 207 | . 6 30 . 4 60 107 Projectiles . | . . . . . . . Explosions 178 | . 6 30 . 4 60 78 Melee 29 | . . . . . . 29 Knockbacks . | . . . . . . . Impact . | . . . . . . . Kinetic . | . . . . . . . Secondary . | . . . . . . . Self-Inflicted Damage 405 | . 14 32 . 19 66 274 Shots 17 | . 1 1 . 1 2 12 Rammed 1 | . . . . . . 1 Targets Rammed 1 | . . . . . . 1 Kicked . | . . . . . . . Crushed . | . . . . . . . Highest Temperature 278 | 70 60 41 212 240 243 278 Average Temperature 72 | 30 21 23 112 86 65 102 Received Heat Transfer 1566 | . 243 78 . 6 405 834 Siege Activations . | . . . . . . . Robots Corrupted . | . . . . . . . Combat Hostiles . | . . . . . . . Parts Fried . | . . . . . . . Impact Corruptions . | . . . . . . . Robots Melted 1 | . . . . . . 1 Combat Hostiles 1 | . . . . . . 1 Parts Melted 10 | 1 . 1 . 3 2 3 Heat Transferred 5074 | 185 518 111 . 592 1998 1670 Parts Sabotaged . | . . . . . . . Parts Stolen . | . . . . . . . Parts Stripped . | . . . . . . . Power Chain Reactions . | . . . . . . . Alert | -11 -10 -10 -10 -9 -8 -7 ------- Run | Yrd Mat Min Exi Min Mat Fac Peak Influence 627 | 5 196 197 . 55 418 627 Initial 173 | . 3 75 . . . 173 Average 138 | 1 74 73 . 25 207 369 Maximum Alert Level 2 | . . . . . 2 2 Low Security (%) 70 | 100 100 100 . 100 40 28 Level 1 22 | . . . . . 54 19 Level 2 6 | . . . . . 4 51 Level 3 . | . . . . . . . Level 4 . | . . . . . . . Level 5 . | . . . . . . . High Security . | . . . . . . . Max Security . | . . . . . . . Squads Dispatched 14 | . 3 . . . 4 7 Investigation 3 | . 1 . . . 1 1 Extermination . | . . . . . . . Reinforcement 11 | . 2 . . . 3 6 Assault . | . . . . . . . Garrison . | . . . . . . . Intercept . | . . . . . . . Searches Triggered . | . . . . . . . Construction Impeded 2 | . . . . . 1 1 Haulers Reinforced . | . . . . . . . Active Scanning Responses . | . . . . . . . Cargo Convoy Interrupts . | . . . . . . . Stealth | -11 -10 -10 -10 -9 -8 -7 --------- Run | Yrd Mat Min Exi Min Mat Fac Distress Signals 7 | . . . . . 5 2 Communications Jammed . | . . . . . . . Distress Signals . | . . . . . . . Times Spotted 116 | . 19 8 . 6 45 38 Peak Tracking Total 9 | . 4 3 . 3 8 9 Tactical Retreats 11 | . 4 . . . . 7 Traps | -11 -10 -10 -10 -9 -8 -7 ------- Run | Yrd Mat Min Exi Min Mat Fac Traps Triggered 7 | . 1 . . . . 6 Indirectly . | . . . . . . . Trap Hack Attempts . | . . . . . . . Triggered . | . . . . . . . Disarmed . | . . . . . . . Reprogrammed . | . . . . . . . Reused . | . . . . . . . Traps Extracted . | . . . . . . . Installed . | . . . . . . . Triggered . | . . . . . . . Machines | -11 -10 -10 -10 -9 -8 -7 ---------- Run | Yrd Mat Min Exi Min Mat Fac Machines Disabled 8 | . . 1 . . 4 3 Max in Single Turn 3 | . . . . . 3 2 Machines Repaired . | . . . . . . . Machines Dismantled . | . . . . . . . Machines Sabotaged . | . . . . . . . Overloaded Fab Kills . | . . . . . . . Hacking | -11 -10 -10 -10 -9 -8 -7 --------- Run | Yrd Mat Min Exi Min Mat Fac Machines Accessed 11 | . 2 1 1 . 6 1 Terminals 3 | . . . . . 3 . Fabricators . | . . . . . . . Repair Stations . | . . . . . . . Recycling Units 4 | . 2 . . . 1 1 Scanalyzers 2 | . . . . . 2 . Garrison Access . | . . . . . . . Total Hacks 24 | . 6 1 1 . 15 1 Successful 15 | . 2 1 1 . 11 . Failed 9 | . 4 . . . 4 1 Catastrophic . | . . . . . . . Database Lockouts . | . . . . . . . Manual 5 | . . . 1 . 4 . Terminals 6 | . . . . . 6 . Fabricators . | . . . . . . . Repair Stations . | . . . . . . . Recycling Units 9 | . 6 . . . 2 1 Scanalyzers 7 | . . . . . 7 . Garrison Access . | . . . . . . . Terminal Hacks 5 | . . 1 1 . 3 . Record 1 | . . . . . 1 . Open Door 1 | . . 1 . . . . Hauler Manifests 2 | . . . . . 2 . Derelict Proto ID Bank 1 | . . . 1 . . . Fabricator Hacks . | . . . . . . . Repair Station Hacks . | . . . . . . . Recycling Unit Hacks 3 | . 2 . . . 1 . Retrieve Components 3 | . 2 . . . 1 . Scanalyzer 7 | . . . . . 7 . Insert Component 3 | . . . . . 3 . Analyze 4 | . . . . . 4 . Garrison Access Hacks . | . . . . . . . Unauthorized Hacks . | . . . . . . . Terminals . | . . . . . . . Fabricators . | . . . . . . . Repair Stations . | . . . . . . . Recycling Units . | . . . . . . . Scanalyzers . | . . . . . . . Garrison Access . | . . . . . . . Data Cores Recovered . | . . . . . . . Used . | . . . . . . . Hacking Detections 7 | . 2 . . . 5 . Full Trace Events 2 | . 1 . . . 1 . Feedback Events . | . . . . . . . Feedback Blocked . | . . . . . . . Robot Schematics Acquired . | . . . . . . . Robots Built . | . . . . . . . Authchips . | . . . . . . . Time . | . . . . . . . Total Robot Build Rating . | . . . . . . . Part Schematics Acquired 3 | . . . . . 3 . Parts Built . | . . . . . . . Authchips . | . . . . . . . Time . | . . . . . . . Total Part Build Rating . | . . . . . . . Parts Repaired . | . . . . . . . Time . | . . . . . . . Parts Recycled . | . . . . . . . Recycled Matter . | . . . . . . . Retrieved Matter . | . . . . . . . Retrieved Components 14 | . 4 . . . 10 . Parts Scanalyzed 3 | . . . . . 3 . Part Schematics Acquired 3 | . . . . . 3 . Parts Damaged . | . . . . . . . Bothacking | -11 -10 -10 -10 -9 -8 -7 ------------ Run | Yrd Mat Min Exi Min Mat Fac Used RIF Installer . | . . . . . . . Robots Hacked . | . . . . . . . Non-combat . | . . . . . . . Combat . | . . . . . . . Robot Hacks Applied . | . . . . . . . Relay Couplers Released . | . . . . . . . Fabnet Peak Effective % . | . . . . . . . Robots Rewired . | . . . . . . . Allies Hacked . | . . . . . . . Hacks Repelled . | . . . . . . . Allies | -11 -10 -10 -10 -9 -8 -7 -------- Run | Yrd Mat Min Exi Min Mat Fac Total Allies 5 | . . 5 . . . . Largest Group 3 | . . 3 2 2 . . Highest-Rated Group 40 | . . 40 24 24 . . Highest-Rated Ally 31 | . . 31 16 16 . . Total Orders . | . . . . . . . Ally Attacks 33 | . . 18 . 15 . . Total Damage 377 | . . 230 . 147 . . Kills 6 | . . 3 . 3 . . Allies Corrupted . | . . . . . . . Allies Melted . | . . . . . . . Intel | -11 -10 -10 -10 -9 -8 -7 ------- Run | Yrd Mat Min Exi Min Mat Fac Robot Analysis Total . | . . . . . . . Derelict Logs Recovered 2 | . . 1 . 1 . . Drone Launches 16 | . . . . . 16 . Drone Recoveries . | . . . . . . . Exploration | -11 -10 -10 -10 -9 -8 -7 ------------- Run | Yrd Mat Min Exi Min Mat Fac Turns Passed 7863 | 98 1033 971 455 1801 2875 630 Spaces Moved 3125 | 46 460 443 228 539 940 469 Core 11 | 11 . . . . . . Treads 622 | 35 460 127 . . . . Legs 1449 | . . . . 511 938 . Wheels 572 | . . 316 228 28 . . Hover . | . . . . . . . Flight 471 | . . . . . 2 469 Fastest Speed 17 | 50 160 140 200 215 260 17 Average Speed 227 | 157 202 208 200 324 264 103 Slowest Speed 1455 | 200 240 240 200 330 1455 376 Overloaded Moves 158 | . . . . . . 158 Propulsion Burnouts . | . . . . . . . Robots Hopped 4 | . . . . . . 4 Cave-ins Triggered 2 | . . . . . 1 1 Exploration Rate (%) 51 | 3 71 78 61 61 74 15 Regions Visited 6 Branch Regions 3 Pre-discovered Areas 1 | . . 1 . . . . Known Exits Taken . | . . . . . . . Unknown Exits Taken 6 | 1 1 1 1 1 1 . Scrap Searched 2 | . . 1 . 1 . . Spaces Dug 70 | . 6 . . . 5 59 Terrain Destroyed 439 | . 56 60 . 41 147 135 Melee 4 | . . . . . . 4 Projectile . | . . . . . . . AOE 435 | . 56 60 . 41 147 131 Terrain Rammed . | . . . . . . . Walls Destroyed . | . . . . . . . Machines Disabled . | . . . . . . . Actions | -11 -10 -10 -10 -9 -8 -7 --------- Run | Yrd Mat Min Exi Min Mat Fac Total 3627 | 60 511 477 228 582 1203 566 Wait 8 | . . . . . 6 2 Move 3112 | 45 459 442 227 538 939 462 Hop 3 | . . . . . . 3 Pick Up 110 | 3 6 15 1 11 56 18 Fast Attach 21 | 7 . . . 1 1 12 Attach 46 | . . 4 . 2 17 23 Detach 11 | . . . . 1 1 9 Swap 43 | 1 10 1 . 5 24 2 Drop 76 | . 3 1 . 8 55 9 Fire 180 | 4 33 14 . 16 102 11 Melee 14 | . . . . . . 14 Ram 1 | . . . . . . 1 Kick . | . . . . . . . Crush . | . . . . . . . Escape Stasis . | . . . . . . . Rewire 2 | . . . . . 2 . Trap . | . . . . . . . Miscellaneous . | . . . . . . . Route ------- -11/Scrapyard -10/Materials (discovered 4 exits: [*Mat x2] / *Min x2) -10/Mines (discovered 3 exits: [*Mat x2] / *Exi) -10/Exiles -9/Mines -8/Materials (discovered 3 exits: *Fac x2 / [*Sto]) -7/Factory History --------- Turn | Location | Event 34 | -11/Scrapyard | Discovered new exit (range 15) 99 | -11/Scrapyard | Entered Materials 337 | -10/Materials | Build established: Mutant 482 | -10/Materials | Discovered new exit (range 4) 671 | -10/Materials | Discovered new exit (range 15) 782 | -10/Materials | Discovered new exit (range 8) 887 | -10/Materials | Discovered new exit (range 10) 1132 | -10/Materials | Entered Mines 1141 | -10/Mines | Found the Drone Emporium 1154 | -10/Mines | Found Prototype Device 1431 | -10/Mines | Learned location of Storage (-8) 1726 | -10/Mines | Core integrity fell below 50% 1854 | -10/Mines | Discovered new exit (range 15) 1892 | -10/Mines | Assisted by bots powering up and referring to "LRC-V3" 2010 | -10/Mines | Discovered new exit (range 5) 2085 | -10/Mines | Deemed a non-threat by the Exiles lab entrance 2087 | -10/Mines | Discovered new exit (range 5) 2103 | -10/Mines | Entered Exiles 2103 | -10/Exiles | Accompanied by 2 allies 2155 | -10/Exiles | Met 8R-AWN 2189 | -10/Exiles | Met EX-HEX 2243 | -10/Exiles | Met EX-BIN 2269 | -10/Exiles | Aligned with FarCom system 2271 | -10/Exiles | Given EX-Vault access code 2323 | -10/Exiles | Opened EX-Vault 2347 | -10/Exiles | Found Firepult 2390 | -10/Exiles | Warned to stay clear of 0b10 Research branches 2442 | -10/Exiles | Met EX-DEC 2540 | -10/Exiles | Discovered new exit (range 10) 2558 | -10/Exiles | Left Exiles lab with Firepult 2558 | -10/Exiles | Entered Mines 2558 | -9/Mines | Accompanied by 2 allies 2580 | -9/Mines | Learned Materials emergency access door positions 2823 | -9/Mines | A weapon hastily lodged in a ceiling crevice suddenly fell to the ground 2904 | -9/Mines | Received a Rocket Launcher from a helpful Derelict 2908 | -9/Mines | Build established: Scavenger-Mutant 3280 | -9/Mines | Assembled infested the area 4217 | -9/Mines | Discovered new exit (range 5) 4359 | -9/Mines | Entered Materials 4359 | -8/Materials | Evolved 4 slots: Propulsion x1, Utility x3 4361 | -8/Materials | Identified Decoy Drone Bay 4560 | -8/Materials | Crushed by falling debris 4679 | -8/Materials | Destroyed 7 combat bots 6298 | -8/Materials | Build established: Mutant 6358 | -8/Materials | Discovered new exit (range 10) 6533 | -8/Materials | Lost 12 allies 6668 | -8/Materials | Discovered new exit (range 13) 6820 | -8/Materials | Build established: Scavenger-Mutant 6923 | -8/Materials | Discovered new exit (range 16) 7234 | -8/Materials | Entered Factory 7234 | -7/Factory | Evolved 2 slots: Power x1, Propulsion x1 7408 | -7/Factory | Crushed by falling debris 7408 | -7/Factory | System corruption reached 10% 7444 | -7/Factory | Lost 9 parts (2p2n4u1w) 7552 | -7/Factory | Found Prototype Launcher 7552 | -7/Factory | Identified Rocket Array 7570 | -7/Factory | Found Rocket Array 7594 | -7/Factory | Lost 4 parts (1p2n1w) 7700 | -7/Factory | Build established: Mutant 7816 | -7/Factory | Core integrity fell below 50% 7858 | -7/Factory | Core integrity fell below 20% 7864 | -7/Factory | Destroyed by Y-54 Guardian with Flak Gun Last Messages --------------- 07816_ U-05 Engineer repairs door. 07821_ Cld. VTOL Module destroyed. 07827_ System corrupted: Matter fused (-6). 07834_ S-27 Virus destroyed. 07846_ System corrupted: Heat flow error (+238). 07847_ K-01 Serf destroyed. 07847_ Imp. Medium Armor Plating destroyed. 07848_ K-01 Serf collects debris. 07857_ Cld. Deuterium Engine destroyed. 07857_ Destroyed Cld. Deuterium Engine. 07857_ Cld. VTOL Module destroyed. 07857_ Destroyed Cld. VTOL Module. 07857_ S-27 Virus destroyed. 07857_ G-47 Trooper destroyed. 07857_ S-27 Virus destroyed. 07857_ K-01 Serf collects debris. 07858_ Imp. VTOL Module destroyed. 07860_ K-01 Serf collects debris. 07861_ System corrupted: Matter fused (-6). 07864_ Thermal Generator destroyed. Map ----- +----------------------------------------------------+ | " #? ???????????????????????????????????? | | #? "??????????????????????????????????? | | # "??????????????????????????????????? | | # # ??????????????????????????????#???? | | # # ???????????????????????????????# ??? | | # #######???????????????########### ### | | ???? ??????? | | ??? ???? | | ??? ?? | | ! ??? ??? | | l ???lg g ??? | | ##### ######????# #?????############## | | #???? #?????????# #??????????????????# | | #???????????????# #???##############?# | | # # #???????????????# #???# #?# | | [ ! # ###?#+?#####+#### #???# #?# | | ## # #???# #?# | | ## """"""""" # #???# #?# | | # ## # #???# ### | | ## # """"""""" # #???# """ """ + | | # # # #???# """ """ ### | | %* # """"""""" + #???# """ """ #?# | | / # #???# "" "" #?# | | %! ## """"""""" # #???# "" "" #?# | | #### *^ # k #???# [ #?# | | ???# * """"""""" !#@ = #???# #?# | | ???# % = # ###########+######## | | ???# !# %# # | | ???# !##############r | | ???# # #??????????# | | ???# # ##??????????# u | | ???# # ##???????????# % Y | | ???# # #???????????## !%= #r##### ###### | | ???# # #???????????# Y [ #??# #????? | | ???# # #???????????# != #??# #????? | | ???# #] #???????????# =% #??# ###### | | ???# # *#???????????# g"""" """" #?# # | | ???? ######???????????# """" """" ##?# # | | ???? ?????????????????# """" """" #??# # | | ???? ?????????????????# """" """" #??# # !! | | ???? ?????????????????# """" """" ##?# # ! | | ???? ?????????????????# """" """" #?# # !] | | ???? ?????????????????# #??# + | | ????#?????????????????# ! #??# # | | ??????????????????????# #??# # | | ??????????????????????#######"+######## # | | ????????????????????????????# #= # | | ????????????????????????????# # * ^# | | ????????????????????????????# #! ###### | | ????????????????????????????# / #????? | +----------------------------------------------------+ Best States ------------- Heat Dissipation 48 Coolant Potential 65 Energy Generation 31 Energy Capacity 520 Matter Stores 300 Matter Capacity 300 Sight Range 16 Terrain Scan Range 16 Terrain Scan Density 10 Armor Coverage 225 Core Shielding 20 Propulsion Shielding 33 Weapon Shielding 33 Evasion (%) 64 Recoil Reduction 2 Salvage Targeting 2 Offensive Hacking 10 Item Schematics ----------------- Airjet | -8/Materials | Scanalyzed Hacking Suite | -8/Materials | Scanalyzed Gauss Rifle | -8/Materials | Scanalyzed Robot Schematics ------------------ None Fabricated ------------ Nothing Alien Tech Used ----------------- None Achievements -------------- Can't Catch Me Challenges ------------ None Game ------ Seed SlugModifiedRigger Manual? 0 Play Time 01:09:03 Cumulative 72.7 hours Start 2024.04.17 @ 21:37:47 End 2024.04.17 @ 22:51:18 Sessions 1 Manual Loads 0 Difficulty Rogue Special Mode None Game No. 90 Rogue 90 Adventurer 0 Explorer 0 Win Type - Total 0 Types 0/0/0/0/0/0/0/0/0 Lore% 19 Gallery% 43 Achievement% 30 Wizard Run 0 Options --------- Layout 1 ASCII 0 Keyboard 1 Movement Vi Keybinds 0 Fullscreen 1 Font 24/Smallcaps Map View 50x35 Zoom Use 0% Tactical HUD 1 Map Filters NONE Filters NONE Steam 1 RUN: 25e17359-b991-480c-93c7-8c595ae5c1b3